[Event "Early-Titled-Tuesday-Blitz-June-18-2024"]
[Site "Chess.com"]
[Date "2024.06.18"]
[Round "11"]
[White "Durarbayli"]
[Black "blitzking1729"]
[Result "0-1"]
[WhiteElo "2945"]
[BlackElo "2853"]
[TimeControl "180+1"]
[EndTime "10:08:33 PDT"]
[Termination "blitzking1729 won by resignation"]

1. d4 {[%clk 0:03:00.9]} 1... d5 {[%clk 0:02:56.9]} 2. c4 {[%clk 0:03:00.6]}
2... e6 {[%clk 0:02:50.7]} 3. Nc3 {[%clk 0:02:59.2]} 3... Nf6 {[%clk 0:02:50.8]}
4. cxd5 {[%clk 0:02:59]} 4... exd5 {[%clk 0:02:50.4]} 5. Bg5 {[%clk 0:02:58.4]}
5... Bb4 {[%clk 0:02:49.6]} 6. e3 {[%clk 0:02:57]} 6... Nbd7 {[%clk 0:02:43]} 7.
Bd3 {[%clk 0:02:56.5]} 7... c6 {[%clk 0:02:39.8]} 8. Ne2 {[%clk 0:02:55.3]} 8...
O-O {[%clk 0:02:40.4]} 9. Qc2 {[%clk 0:02:55]} 9... h6 {[%clk 0:02:37.8]} 10. h4
{[%clk 0:02:53.2]} 10... Re8 {[%clk 0:02:36.4]} 11. g4 {[%clk 0:02:51.6]} 11...
hxg5 {[%clk 0:02:33]} 12. hxg5 {[%clk 0:02:51.8]} 12... Ne4 {[%clk 0:02:33.7]}
13. Bxe4 {[%clk 0:02:49.6]} 13... dxe4 {[%clk 0:02:32.7]} 14. g6 {[%clk
0:02:46.4]} 14... Qf6 {[%clk 0:02:15.3]} 15. gxf7+ {[%clk 0:02:30.3]} 15... Qxf7
{[%clk 0:02:15.4]} 16. g5 {[%clk 0:02:30.5]} 16... Nb6 {[%clk 0:02:12.7]} 17.
O-O-O {[%clk 0:02:29.6]} 17... Bf5 {[%clk 0:02:10.4]} 18. Rh4 {[%clk 0:02:25.3]}
18... Kf8 {[%clk 0:02:00.8]} 19. Ng3 {[%clk 0:02:17.1]} 19... Bd6 {[%clk
0:01:30.3]} 20. Ngxe4 {[%clk 0:02:04.6]} 20... Ke7 {[%clk 0:01:27.8]} 21. Qd2
{[%clk 0:01:23.3]} 21... Bb4 {[%clk 0:01:19.5]} 22. a3 {[%clk 0:01:02.2]} 22...
Bxc3 {[%clk 0:01:10.5]} 23. Nxc3 {[%clk 0:01:00.8]} 23... Kd7 {[%clk 0:01:00.7]}
24. e4 {[%clk 0:00:57.6]} 24... Bg6 {[%clk 0:01:00.6]} 25. Rf4 {[%clk
0:00:46.1]} 25... Qe7 {[%clk 0:00:58.4]} 26. d5 {[%clk 0:00:45.2]} 26... Rad8
{[%clk 0:00:55]} 27. dxc6+ {[%clk 0:00:29.8]} 27... Kxc6 {[%clk 0:00:32.4]} 28.
Nd5 {[%clk 0:00:29]} 28... Qc5+ {[%clk 0:00:22.7]} 29. Qc3 {[%clk 0:00:25.8]}
29... Qxc3+ {[%clk 0:00:20.5]} 30. Nxc3 {[%clk 0:00:25.8]} 30... Rxd1+ {[%clk
0:00:20.7]} 31. Kxd1 {[%clk 0:00:26.6]} 31... Nc4 {[%clk 0:00:20.1]} 32. Kc2
{[%clk 0:00:25.5]} 32... Nd6 {[%clk 0:00:15.3]} 33. f3 {[%clk 0:00:24.2]} 33...
Nc4 {[%clk 0:00:15]} 34. a4 {[%clk 0:00:21.4]} 34... a5 {[%clk 0:00:14.8]} 35.
b3 {[%clk 0:00:21.4]} 35... Ne5 {[%clk 0:00:14.6]} 36. Nb5 {[%clk 0:00:20.5]}
36... Rh8 {[%clk 0:00:14.3]} 37. Kc3 {[%clk 0:00:20.5]} 37... Rh3 {[%clk
0:00:12.8]} 38. Nd4+ {[%clk 0:00:20.5]} 38... Kd7 {[%clk 0:00:12.4]} 39. Kd2
{[%clk 0:00:16.4]} 39... Bh5 {[%clk 0:00:09.3]} 40. Ke3 {[%clk 0:00:15.1]} 40...
g6 {[%clk 0:00:07.1]} 41. Rf8 {[%clk 0:00:14.8]} 41... Ke7 {[%clk 0:00:04.4]}
42. Rf6 {[%clk 0:00:13.8]} 42... Ng4+ {[%clk 0:00:04.4]} 43. Kf4 {[%clk
0:00:14.3]} 43... Nxf6 {[%clk 0:00:05.3]} 44. gxf6+ {[%clk 0:00:14.7]} 44...
Kxf6 {[%clk 0:00:06]} 45. e5+ {[%clk 0:00:15.6]} 45... Ke7 {[%clk 0:00:06.2]}
46. Ke4 {[%clk 0:00:16.5]} 46... g5 {[%clk 0:00:04.8]} 47. f4 {[%clk 0:00:17.4]}
47... gxf4 {[%clk 0:00:04.5]} 48. Nf5+ {[%clk 0:00:18.3]} 48... Kd7 {[%clk
0:00:04.5]} 49. Kxf4 {[%clk 0:00:19.2]} 49... Rxb3 {[%clk 0:00:04.3]} 50. Kg5
{[%clk 0:00:20.1]} 50... Bf7 {[%clk 0:00:03.7]} 51. Nd4 {[%clk 0:00:19.3]} 51...
Rb4 {[%clk 0:00:03.9]} 52. Nb5 {[%clk 0:00:18.2]} 52... Rxb5 {[%clk 0:00:03.7]}
53. axb5 {[%clk 0:00:18.5]} 53... a4 {[%clk 0:00:04.4]} 54. Kf6 {[%clk
0:00:19.3]} 54... Be6 {[%clk 0:00:04.5]} 0-1

[Event "Early-Titled-Tuesday-Blitz-June-18-2024"]
[Site "Chess.com"]
[Date "2024.06.18"]
[Round "11"]
[White "Caroexpert"]
[Black "esskeettit"]
[Result "0-1"]
[WhiteElo "2611"]
[BlackElo "2520"]
[TimeControl "180+1"]
[EndTime "10:08:33 PDT"]
[Termination "esskeettit won on time"]

1. d4 {[%clk 0:02:49.9]} 1... d5 {[%clk 0:02:58.7]} 2. c4 {[%clk 0:02:48.5]}
2... dxc4 {[%clk 0:02:59]} 3. e3 {[%clk 0:02:48]} 3... e5 {[%clk 0:02:58.3]} 4.
Bxc4 {[%clk 0:02:48.4]} 4... exd4 {[%clk 0:02:58.2]} 5. exd4 {[%clk 0:02:48.9]}
5... Nf6 {[%clk 0:02:55.6]} 6. Nf3 {[%clk 0:02:49.1]} 6... Bb4+ {[%clk
0:02:55.3]} 7. Nc3 {[%clk 0:02:45.5]} 7... O-O {[%clk 0:02:55.1]} 8. O-O {[%clk
0:02:41.7]} 8... Bg4 {[%clk 0:02:41.5]} 9. Be3 {[%clk 0:02:28.1]} 9... Nbd7
{[%clk 0:02:35.5]} 10. h3 {[%clk 0:02:25]} 10... Bh5 {[%clk 0:02:35.1]} 11. g4
{[%clk 0:02:25]} 11... Bg6 {[%clk 0:02:34.6]} 12. Ne5 {[%clk 0:02:25.6]} 12...
Nxe5 {[%clk 0:02:11.6]} 13. dxe5 {[%clk 0:02:24.5]} 13... Bxc3 {[%clk
0:02:02.3]} 14. bxc3 {[%clk 0:02:15]} 14... Nd7 {[%clk 0:01:29]} 15. f4 {[%clk
0:02:02.8]} 15... Be4 {[%clk 0:01:28.3]} 16. e6 {[%clk 0:02:00.1]} 16... Nb6
{[%clk 0:01:19.8]} 17. exf7+ {[%clk 0:01:40]} 17... Kh8 {[%clk 0:01:19.4]} 18.
Qxd8 {[%clk 0:01:37.6]} 18... Raxd8 {[%clk 0:01:17.9]} 19. Bxb6 {[%clk
0:01:37.7]} 19... cxb6 {[%clk 0:01:12.7]} 20. Rad1 {[%clk 0:01:34.1]} 20... g6
{[%clk 0:00:57.7]} 21. Rd4 {[%clk 0:00:25.5]} 21... Bc6 {[%clk 0:00:36.4]} 22.
Be6 {[%clk 0:00:22.4]} 22... Kg7 {[%clk 0:00:25.4]} 23. f5 {[%clk 0:00:22.7]}
23... g5 {[%clk 0:00:17.8]} 24. h4 {[%clk 0:00:17.1]} 24... h6 {[%clk
0:00:17.4]} 25. f6+ {[%clk 0:00:16.4]} 25... Kg6 {[%clk 0:00:09.7]} 26. h5+
{[%clk 0:00:14.2]} 26... Kh7 {[%clk 0:00:10]} 27. Bf5+ {[%clk 0:00:14.5]} 27...
Kh8 {[%clk 0:00:09.7]} 28. Be6 {[%clk 0:00:13.1]} 28... Kh7 {[%clk 0:00:08.7]}
29. Rfd1 {[%clk 0:00:12.7]} 29... Rb8 {[%clk 0:00:08.2]} 30. Rd6 {[%clk
0:00:09.8]} 30... a6 {[%clk 0:00:07]} 31. c4 {[%clk 0:00:08.3]} 31... a5 {[%clk
0:00:06.6]} 32. R1d4 {[%clk 0:00:07.7]} 32... Ra8 {[%clk 0:00:06.2]} 33. Bf5+
{[%clk 0:00:07.2]} 33... Kh8 {[%clk 0:00:06]} 34. Bg6 {[%clk 0:00:07.6]} 34...
a4 {[%clk 0:00:05.9]} 35. Re6 {[%clk 0:00:07.4]} 35... a3 {[%clk 0:00:05.7]} 36.
Rdd6 {[%clk 0:00:05.7]} 36... Rac8 {[%clk 0:00:05.2]} 37. Kf2 {[%clk 0:00:05.3]}
37... Ra8 {[%clk 0:00:05.1]} 38. Ke3 {[%clk 0:00:05.3]} 38... b5 {[%clk
0:00:04.6]} 39. c5 {[%clk 0:00:04.5]} 39... b4 {[%clk 0:00:04.6]} 40. Rxc6
{[%clk 0:00:02.8]} 40... bxc6 {[%clk 0:00:04.3]} 41. Rxc6 {[%clk 0:00:01.3]}
41... b3 {[%clk 0:00:04.7]} 0-1

[Event "Early-Titled-Tuesday-Blitz-June-18-2024"]
[Site "Chess.com"]
[Date "2024.06.18"]
[Round "11"]
[White "Lady_Nika"]
[Black "Slovineanu"]
[Result "0-1"]
[WhiteElo "2515"]
[BlackElo "2557"]
[TimeControl "180+1"]
[EndTime "10:08:33 PDT"]
[Termination "Slovineanu won by resignation"]

1. d4 {[%clk 0:03:00.9]} 1... Nf6 {[%clk 0:02:59.8]} 2. e3 {[%clk 0:03:01.2]}
2... d5 {[%clk 0:02:59.5]} 3. f4 {[%clk 0:03:01.2]} 3... Bf5 {[%clk 0:02:55]} 4.
Nf3 {[%clk 0:03:01.4]} 4... e6 {[%clk 0:02:55.2]} 5. c3 {[%clk 0:03:01.6]} 5...
c5 {[%clk 0:02:54.9]} 6. Bd3 {[%clk 0:03:02.1]} 6... Bxd3 {[%clk 0:02:53.9]} 7.
Qxd3 {[%clk 0:03:02.2]} 7... Nc6 {[%clk 0:02:51.7]} 8. Nbd2 {[%clk 0:03:02.6]}
8... Bd6 {[%clk 0:02:51.2]} 9. Ne5 {[%clk 0:03:02.9]} 9... O-O {[%clk
0:02:46.6]} 10. O-O {[%clk 0:03:02.8]} 10... Rb8 {[%clk 0:02:40.3]} 11. Rf3
{[%clk 0:03:01.5]} 11... Ne7 {[%clk 0:02:35]} 12. Rh3 {[%clk 0:03:01.2]} 12...
Ng6 {[%clk 0:02:24.6]} 13. a4 {[%clk 0:03:00.4]} 13... a6 {[%clk 0:02:21.3]} 14.
a5 {[%clk 0:02:58.9]} 14... cxd4 {[%clk 0:02:21.4]} 15. exd4 {[%clk 0:02:58.6]}
15... Nxf4 {[%clk 0:02:13.9]} 16. Qg3 {[%clk 0:02:54]} 16... Nxh3+ {[%clk
0:02:11.1]} 17. gxh3 {[%clk 0:02:53.9]} 17... Ne4 {[%clk 0:01:57.6]} 18. Nxe4
{[%clk 0:02:53.7]} 18... dxe4 {[%clk 0:01:57.4]} 19. Bh6 {[%clk 0:02:53.5]}
19... Qf6 {[%clk 0:01:55.3]} 20. Bf4 {[%clk 0:02:02]} 20... Rbd8 {[%clk
0:01:28.5]} 21. Kh1 {[%clk 0:01:58.8]} 21... Bxe5 {[%clk 0:01:25.5]} 22. Bxe5
{[%clk 0:01:58.1]} 22... Qf3+ {[%clk 0:01:25.9]} 23. Qxf3 {[%clk 0:01:57.3]}
23... exf3 {[%clk 0:01:26.5]} 24. Rf1 {[%clk 0:01:47.3]} 24... f6 {[%clk
0:01:26.4]} 25. Bc7 {[%clk 0:01:47.4]} 25... Rd7 {[%clk 0:00:50.3]} 26. Bb6
{[%clk 0:01:47]} 26... e5 {[%clk 0:00:50.3]} 27. Rxf3 {[%clk 0:01:46.3]} 27...
exd4 {[%clk 0:00:48.4]} 28. Bxd4 {[%clk 0:01:45.4]} 28... Re8 {[%clk 0:00:47.6]}
29. Kg1 {[%clk 0:01:42.8]} 29... Re2 {[%clk 0:00:45.7]} 30. b4 {[%clk
0:01:42.4]} 30... Kf7 {[%clk 0:00:43.6]} 31. Rf5 {[%clk 0:01:37.5]} 31... Rde7
{[%clk 0:00:34.9]} 32. Rc5 {[%clk 0:01:37.2]} 32... Rc2 {[%clk 0:00:32.9]} 33.
Bf2 {[%clk 0:01:02.9]} 33... Ree2 {[%clk 0:00:31.2]} 34. Rf5 {[%clk 0:01:02.5]}
34... Rxc3 {[%clk 0:00:29.4]} 35. b5 {[%clk 0:01:00.7]} 35... Rcc2 {[%clk
0:00:26.3]} 36. bxa6 {[%clk 0:00:58.4]} 36... bxa6 {[%clk 0:00:26.6]} 37. Rf3
{[%clk 0:00:20.7]} 37... Rxf2 {[%clk 0:00:20.6]} 38. Rxf2 {[%clk 0:00:21.6]}
38... Rxf2 {[%clk 0:00:21.1]} 39. Kxf2 {[%clk 0:00:22.5]} 39... Ke6 {[%clk
0:00:21.6]} 40. Ke3 {[%clk 0:00:23.4]} 40... Ke5 {[%clk 0:00:21.6]} 41. h4
{[%clk 0:00:23.1]} 41... h5 {[%clk 0:00:21.6]} 42. h3 {[%clk 0:00:23.3]} 42...
g6 {[%clk 0:00:21]} 43. Kf3 {[%clk 0:00:23.2]} 43... f5 {[%clk 0:00:19.3]} 44.
Ke3 {[%clk 0:00:23.3]} 44... f4+ {[%clk 0:00:19.7]} 45. Ke2 {[%clk 0:00:22]}
45... Ke4 {[%clk 0:00:19.9]} 46. Kf2 {[%clk 0:00:22.3]} 46... f3 {[%clk
0:00:20.1]} 47. Kf1 {[%clk 0:00:22.6]} 47... Ke5 {[%clk 0:00:17.3]} 48. Kg1
{[%clk 0:00:22]} 48... Kf5 {[%clk 0:00:16.8]} 49. Kf1 {[%clk 0:00:21.3]} 49...
Ke4 {[%clk 0:00:17.3]} 50. Kf2 {[%clk 0:00:15.8]} 50... Kf4 {[%clk 0:00:17.6]}
51. Kf1 {[%clk 0:00:16.2]} 51... Kg3 {[%clk 0:00:18]} 52. Kg1 {[%clk 0:00:15.4]}
52... Kxh3 {[%clk 0:00:17.3]} 53. Kf2 {[%clk 0:00:16.3]} 53... Kg4 {[%clk
0:00:17.7]} 54. Ke3 {[%clk 0:00:15.9]} 54... Kg3 {[%clk 0:00:18.1]} 0-1

[Event "Early-Titled-Tuesday-Blitz-June-18-2024"]
[Site "Chess.com"]
[Date "2024.06.18"]
[Round "11"]
[White "Austen48"]
[Black "Jeppesen08"]
[Result "0-1"]
[WhiteElo "2301"]
[BlackElo "2439"]
[TimeControl "180+1"]
[EndTime "10:08:34 PDT"]
[Termination "Jeppesen08 won by resignation"]

1. d4 {[%clk 0:03:00.9]} 1... f5 {[%clk 0:02:56]} 2. c4 {[%clk 0:02:57.8]} 2...
Nf6 {[%clk 0:02:56.2]} 3. g3 {[%clk 0:02:58.1]} 3... e6 {[%clk 0:02:56.5]} 4.
Bg2 {[%clk 0:02:58.4]} 4... d5 {[%clk 0:02:57.2]} 5. Nd2 {[%clk 0:02:55.7]} 5...
c6 {[%clk 0:02:57.5]} 6. Nh3 {[%clk 0:02:54.6]} 6... Bd6 {[%clk 0:02:55.9]} 7.
Qc2 {[%clk 0:02:54]} 7... O-O {[%clk 0:02:53.8]} 8. Nf3 {[%clk 0:02:53.6]} 8...
Ne4 {[%clk 0:02:51.2]} 9. O-O {[%clk 0:02:50.5]} 9... Nd7 {[%clk 0:02:51.1]} 10.
Nf4 {[%clk 0:02:50.4]} 10... Qe7 {[%clk 0:02:41.9]} 11. Nd3 {[%clk 0:02:46.3]}
11... g5 {[%clk 0:02:21.3]} 12. Nfe5 {[%clk 0:02:42.8]} 12... Nxe5 {[%clk
0:02:15.5]} 13. dxe5 {[%clk 0:02:41.8]} 13... Bc7 {[%clk 0:02:14.5]} 14. b4
{[%clk 0:02:36.2]} 14... a5 {[%clk 0:01:55.2]} 15. f3 {[%clk 0:02:30.9]} 15...
axb4 {[%clk 0:01:39.9]} 16. fxe4 {[%clk 0:02:29.9]} 16... dxe4 {[%clk
0:01:38.6]} 17. Nf2 {[%clk 0:02:17.8]} 17... Bxe5 {[%clk 0:01:34.8]} 18. Bb2
{[%clk 0:02:17.8]} 18... Qc5 {[%clk 0:01:28]} 19. Bxe5 {[%clk 0:02:15]} 19...
Qxe5 {[%clk 0:01:28.9]} 20. Kh1 {[%clk 0:02:13.6]} 20... c5 {[%clk 0:01:26.4]}
21. Nxe4 {[%clk 0:02:09.3]} 21... fxe4 {[%clk 0:01:21.7]} 22. Rxf8+ {[%clk
0:02:08.2]} 22... Kxf8 {[%clk 0:01:22.1]} 23. Rf1+ {[%clk 0:02:07.9]} 23... Kg7
{[%clk 0:01:20.6]} 24. Bxe4 {[%clk 0:02:06]} 24... Rxa2 {[%clk 0:00:44.8]} 25.
Qxa2 {[%clk 0:01:58.8]} 25... Qxe4+ {[%clk 0:00:45.2]} 26. Kg1 {[%clk
0:01:56.3]} 26... Qd4+ {[%clk 0:00:45.8]} 27. Rf2 {[%clk 0:01:48.1]} 27... Qd1+
{[%clk 0:00:20.1]} 28. Kg2 {[%clk 0:01:44.2]} 28... Bd7 {[%clk 0:00:15.3]} 29.
Qb2+ {[%clk 0:01:38.6]} 29... Kg8 {[%clk 0:00:15.7]} 30. Qf6 {[%clk 0:01:25.6]}
30... Bc6+ {[%clk 0:00:12.6]} 31. Kh3 {[%clk 0:01:25.7]} 31... g4+ {[%clk
0:00:13.1]} 32. Kh4 {[%clk 0:01:20.2]} 32... Qd6 {[%clk 0:00:10.7]} 33. Qg5+
{[%clk 0:01:05.2]} 33... Kh8 {[%clk 0:00:10.5]} 34. Kxg4 {[%clk 0:01:01.1]}
34... Be4 {[%clk 0:00:10.1]} 35. Qf6+ {[%clk 0:00:58.6]} 35... Kg8 {[%clk
0:00:09.5]} 36. Qf7+ {[%clk 0:00:58.2]} 36... Kh8 {[%clk 0:00:10.1]} 37. Kh3
{[%clk 0:00:54.6]} 37... Bf5+ {[%clk 0:00:09.8]} 38. g4 {[%clk 0:00:51.2]} 38...
Bg6 {[%clk 0:00:05.6]} 39. Qf6+ {[%clk 0:00:49.8]} 39... Kg8 {[%clk 0:00:05.4]}
40. Rf3 {[%clk 0:00:45.4]} 40... b6 {[%clk 0:00:03.7]} 41. Qg5 {[%clk
0:00:39.1]} 41... Kg7 {[%clk 0:00:03.3]} 42. Qf4 {[%clk 0:00:35.4]} 42... Qxf4
{[%clk 0:00:03.3]} 43. Rxf4 {[%clk 0:00:35.1]} 43... b3 {[%clk 0:00:04]} 44. e4
{[%clk 0:00:17.5]} 44... b2 {[%clk 0:00:02.7]} 45. Rf1 {[%clk 0:00:18.1]} 45...
Bxe4 {[%clk 0:00:03.2]} 46. Re1 {[%clk 0:00:17.1]} 46... b1=Q {[%clk 0:00:03.7]}
47. Rxb1 {[%clk 0:00:16.5]} 47... Bxb1 {[%clk 0:00:04.6]} 48. Kg3 {[%clk
0:00:16.3]} 48... Bd3 {[%clk 0:00:05.2]} 49. Kf4 {[%clk 0:00:16.8]} 49... Bxc4
{[%clk 0:00:05.9]} 50. Ke5 {[%clk 0:00:17.4]} 50... b5 {[%clk 0:00:06.2]} 51.
Kd6 {[%clk 0:00:17.3]} 51... b4 {[%clk 0:00:06.9]} 52. Kxc5 {[%clk 0:00:18.1]}
52... b3 {[%clk 0:00:07.6]} 53. Kxc4 {[%clk 0:00:18.6]} 53... b2 {[%clk
0:00:08.5]} 54. Kd4 {[%clk 0:00:19]} 54... b1=Q {[%clk 0:00:09.4]} 55. Ke5
{[%clk 0:00:19.5]} 55... Qf1 {[%clk 0:00:09.9]} 56. Kxe6 {[%clk 0:00:19.4]}
56... Kg6 {[%clk 0:00:10.8]} 57. h4 {[%clk 0:00:18.5]} 57... Qe1+ {[%clk
0:00:11.2]} 58. Kd5 {[%clk 0:00:18.1]} 58... Qxh4 {[%clk 0:00:11.9]} 59. Ke5
{[%clk 0:00:17.6]} 59... Qxg4 {[%clk 0:00:12.3]} 60. Kd6 {[%clk 0:00:18.3]}
60... h5 {[%clk 0:00:12.9]} 61. Kd5 {[%clk 0:00:18.7]} 61... h4 {[%clk
0:00:13.8]} 62. Ke5 {[%clk 0:00:18.9]} 62... h3 {[%clk 0:00:14.7]} 0-1

[Event "Early-Titled-Tuesday-Blitz-June-18-2024"]
[Site "Chess.com"]
[Date "2024.06.18"]
[Round "11"]
[White "sirinbaba33"]
[Black "MatthewG-p4p"]
[Result "0-1"]
[WhiteElo "2435"]
[BlackElo "2816"]
[TimeControl "180+1"]
[EndTime "10:08:35 PDT"]
[Termination "MatthewG-p4p won by checkmate"]

1. e4 {[%clk 0:03:00.9]} 1... c5 {[%clk 0:02:57.2]} 2. Nf3 {[%clk 0:03:00.9]}
2... g6 {[%clk 0:02:57.5]} 3. d4 {[%clk 0:03:00.4]} 3... cxd4 {[%clk 0:02:58.4]}
4. Nxd4 {[%clk 0:03:00.5]} 4... Bg7 {[%clk 0:02:58.7]} 5. c4 {[%clk 0:03:00.2]}
5... Nc6 {[%clk 0:02:59.3]} 6. Be3 {[%clk 0:03:00.5]} 6... Qb6 {[%clk
0:02:59.7]} 7. Nb3 {[%clk 0:02:57.3]} 7... Qd8 {[%clk 0:02:59.2]} 8. Nd4 {[%clk
0:02:57.5]} 8... Nf6 {[%clk 0:02:59.5]} 9. Nc3 {[%clk 0:02:57.3]} 9... O-O
{[%clk 0:02:59.5]} 10. Be2 {[%clk 0:02:57.3]} 10... d6 {[%clk 0:02:59.8]} 11. f3
{[%clk 0:02:55.2]} 11... Nxd4 {[%clk 0:02:56.7]} 12. Bxd4 {[%clk 0:02:55.1]}
12... a5 {[%clk 0:02:57.6]} 13. Qd2 {[%clk 0:02:54.1]} 13... Bd7 {[%clk
0:02:57.6]} 14. O-O-O {[%clk 0:02:52.3]} 14... a4 {[%clk 0:02:54]} 15. Kb1
{[%clk 0:02:46.1]} 15... Bc6 {[%clk 0:02:25.4]} 16. h4 {[%clk 0:02:44.6]} 16...
a3 {[%clk 0:02:15.6]} 17. b3 {[%clk 0:02:29.5]} 17... Qa5 {[%clk 0:01:56.8]} 18.
g4 {[%clk 0:02:24.1]} 18... h5 {[%clk 0:01:51.9]} 19. gxh5 {[%clk 0:02:15.1]}
19... Qxh5 {[%clk 0:01:34.1]} 20. Rdg1 {[%clk 0:01:46.3]} 20... Bh6 {[%clk
0:01:14.9]} 21. f4 {[%clk 0:00:46.7]} 21... Nxe4 {[%clk 0:01:13.6]} 22. Qc2
{[%clk 0:00:46.7]} 22... Qf5 {[%clk 0:00:58.4]} 23. Bd3 {[%clk 0:00:46.1]} 23...
e5 {[%clk 0:00:21.7]} 24. Nxe4 {[%clk 0:00:25.6]} 24... exd4 {[%clk 0:00:20.6]}
25. h5 {[%clk 0:00:25.1]} 25... Qxf4 {[%clk 0:00:15.8]} 26. hxg6 {[%clk
0:00:24.9]} 26... f5 {[%clk 0:00:16.4]} 27. Ng3 {[%clk 0:00:17.6]} 27... Bxh1
{[%clk 0:00:16]} 28. Nxh1 {[%clk 0:00:11.3]} 28... Rae8 {[%clk 0:00:15.9]} 29.
Qg2 {[%clk 0:00:10.5]} 29... Re7 {[%clk 0:00:06.4]} 30. c5 {[%clk 0:00:10.7]}
30... Rfe8 {[%clk 0:00:06.5]} 31. Bc4+ {[%clk 0:00:10.9]} 31... Kg7 {[%clk
0:00:07.2]} 32. Rd1 {[%clk 0:00:02.3]} 32... Qe4+ {[%clk 0:00:06.2]} 33. Qxe4
{[%clk 0:00:02.2]} 33... Rxe4 {[%clk 0:00:06.3]} 34. Ng3 {[%clk 0:00:02.9]}
34... Re1 {[%clk 0:00:06.4]} 35. Nxf5+ {[%clk 0:00:02]} 35... Kxg6 {[%clk
0:00:07.1]} 36. Bf7+ {[%clk 0:00:02.4]} 36... Kxf7 {[%clk 0:00:06.7]} 37. Rxe1
{[%clk 0:00:02.8]} 37... Rxe1+ {[%clk 0:00:06.5]} 38. Kc2 {[%clk 0:00:03.7]}
38... Bf4 {[%clk 0:00:06.4]} 39. cxd6 {[%clk 0:00:03.4]} 39... Ke6 {[%clk
0:00:06.3]} 40. Nxd4+ {[%clk 0:00:03.4]} 40... Kxd6 {[%clk 0:00:07]} 41. Nf3
{[%clk 0:00:04.3]} 41... Re2+ {[%clk 0:00:07.1]} 42. Kd3 {[%clk 0:00:04.6]}
42... Rxa2 {[%clk 0:00:07.5]} 43. Nd4 {[%clk 0:00:05.5]} 43... Kd5 {[%clk
0:00:06.3]} 44. Nb5 {[%clk 0:00:05.7]} 44... Ra1 {[%clk 0:00:06.9]} 45. Nc3+
{[%clk 0:00:06]} 45... Kc6 {[%clk 0:00:07.5]} 46. b4 {[%clk 0:00:06.6]} 46...
Be5 {[%clk 0:00:08.1]} 47. Ne4 {[%clk 0:00:05.1]} 47... a2 {[%clk 0:00:07.5]}
48. Nd2 {[%clk 0:00:04.3]} 48... Rd1 {[%clk 0:00:07.8]} 49. b5+ {[%clk
0:00:04.4]} 49... Kxb5 {[%clk 0:00:07.9]} 50. Kc2 {[%clk 0:00:04.9]} 50... Rxd2+
{[%clk 0:00:08.2]} 51. Kb3 {[%clk 0:00:05.1]} 51... Rb2+ {[%clk 0:00:08.1]} 52.
Ka3 {[%clk 0:00:04.8]} 52... a1=Q# {[%clk 0:00:08.9]} 0-1